[Event "Betsys MČR v online bleskovém šachu 2021"]
[Site "Chess.com"]
[Date "2021.04.17"]
[Round "12"]
[White "MatejKopecky13"]
[Black "VojtaT"]
[Result "0-1"]
[WhiteElo "1490"]
[BlackElo "1723"]
[TimeControl "180+1"]
[EndTime "11:00:13 PDT"]
[Termination "Uživatel VojtaT zvítězil matem"]

1. e4 {[%clk 0:03:00.9]} 1... c5 {[%clk 0:02:59.1]} 2. Nf3 {[%clk 0:02:58.9]}
2... Nc6 {[%clk 0:02:58.8]} 3. Nc3 {[%clk 0:02:58.2]} 3... g6 {[%clk 0:02:45.7]}
4. Bc4 {[%clk 0:02:58.4]} 4... e6 {[%clk 0:02:44.9]} 5. d3 {[%clk 0:02:58.5]}
5... Bg7 {[%clk 0:02:44.4]} 6. Bg5 {[%clk 0:02:57.3]} 6... Nge7 {[%clk
0:02:37.7]} 7. Qd2 {[%clk 0:02:56.6]} 7... a6 {[%clk 0:02:28.2]} 8. a4 {[%clk
0:02:55.5]} 8... Qc7 {[%clk 0:02:20.7]} 9. h4 {[%clk 0:02:50.2]} 9... h6 {[%clk
0:02:03.6]} 10. Bf4 {[%clk 0:02:48.2]} 10... d6 {[%clk 0:02:04.1]} 11. Bb5
{[%clk 0:02:22.7]} 11... axb5 {[%clk 0:01:46.1]} 12. Nxb5 {[%clk 0:02:22.4]}
12... Qd7 {[%clk 0:01:45.7]} 13. Nxd6+ {[%clk 0:02:21.2]} 13... Kf8 {[%clk
0:01:45.8]} 14. Nb5 {[%clk 0:02:19.5]} 14... Bxb2 {[%clk 0:01:39]} 15. Rb1
{[%clk 0:02:18.6]} 15... Bg7 {[%clk 0:01:38.5]} 16. h5 {[%clk 0:01:54.8]} 16...
g5 {[%clk 0:01:37.9]} 17. Bd6 {[%clk 0:01:51.1]} 17... Rxa4 {[%clk 0:01:33.5]}
18. e5 {[%clk 0:01:51.3]} 18... Ra5 {[%clk 0:01:30]} 19. Nxg5 {[%clk 0:01:41.3]}
19... hxg5 {[%clk 0:01:28.2]} 20. Qxg5 {[%clk 0:01:39.8]} 20... Bh6 {[%clk
0:01:17.5]} 21. Qf6 {[%clk 0:01:37.7]} 21... Bg7 {[%clk 0:01:15.6]} 22. Qg5
{[%clk 0:01:37.6]} 22... Bh6 {[%clk 0:00:59]} 23. Qh4 {[%clk 0:00:49.6]} 23...
Rg8 {[%clk 0:00:58]} 24. Qf6 {[%clk 0:00:45.2]} 24... Bg5 {[%clk 0:00:53.2]} 25.
Qf3 {[%clk 0:00:43.4]} 25... Nxe5 {[%clk 0:00:46.1]} 26. Bxe5 {[%clk 0:00:30.5]}
26... Rxb5 {[%clk 0:00:46.6]} 27. Rxb5 {[%clk 0:00:29.9]} 27... Qxb5 {[%clk
0:00:47.5]} 28. O-O {[%clk 0:00:29.9]} 28... Qc6 {[%clk 0:00:44]} 29. Qh3 {[%clk
0:00:25.5]} 29... f6 {[%clk 0:00:40.6]} 30. Bb2 {[%clk 0:00:24.3]} 30... e5
{[%clk 0:00:39.2]} 31. Qh2 {[%clk 0:00:24.2]} 31... Bf4 {[%clk 0:00:37.9]} 32.
Qh4 {[%clk 0:00:23.7]} 32... Qxg2# {[%clk 0:00:36.3]} 0-1

[Event "Betsys MČR v online bleskovém šachu 2021"]
[Site "Chess.com"]
[Date "2021.04.17"]
[Round "12"]
[White "povrlak60"]
[Black "polik1112"]
[Result "1-0"]
[WhiteElo "1590"]
[BlackElo "1363"]
[TimeControl "180+1"]
[EndTime "11:00:13 PDT"]
[Termination "Uživatel povrlak60 zvítězil matem"]

1. e4 {[%clk 0:02:55.2]} 1... e6 {[%clk 0:02:59.7]} 2. d4 {[%clk 0:02:54.3]}
2... d5 {[%clk 0:02:59.3]} 3. e5 {[%clk 0:02:54.3]} 3... c5 {[%clk 0:02:58.7]}
4. Nc3 {[%clk 0:02:52.9]} 4... cxd4 {[%clk 0:02:55.8]} 5. Nb5 {[%clk 0:02:51.7]}
5... Qa5+ {[%clk 0:02:49.3]} 6. Bd2 {[%clk 0:02:50.6]} 6... Qb6 {[%clk
0:02:40.4]} 7. Nf3 {[%clk 0:02:42.3]} 7... a6 {[%clk 0:02:31.4]} 8. Nbxd4 {[%clk
0:02:39.9]} 8... Bc5 {[%clk 0:02:30.8]} 9. c3 {[%clk 0:02:38.9]} 9... Nc6 {[%clk
0:02:22.1]} 10. Qb3 {[%clk 0:02:17.2]} 10... Nxd4 {[%clk 0:01:45.4]} 11. cxd4
{[%clk 0:02:12]} 11... Bxd4 {[%clk 0:01:39.8]} 12. Nxd4 {[%clk 0:02:05]} 12...
Qxd4 {[%clk 0:01:39.3]} 13. Bc3 {[%clk 0:01:28.4]} 13... Qe4+ {[%clk 0:01:25.6]}
14. Kd2 {[%clk 0:00:59.2]} 14... Qf4+ {[%clk 0:01:17.1]} 15. Ke1 {[%clk
0:00:53.3]} 15... Ne7 {[%clk 0:00:59.4]} 16. Bd3 {[%clk 0:00:37.9]} 16... Nc6
{[%clk 0:00:37.7]} 17. Bd2 {[%clk 0:00:24.4]} 17... Qxe5+ {[%clk 0:00:30.8]} 18.
Kf1 {[%clk 0:00:24.2]} 18... O-O {[%clk 0:00:26.2]} 19. g3 {[%clk 0:00:21.7]}
19... Qd6 {[%clk 0:00:25.8]} 20. Kg2 {[%clk 0:00:20.1]} 20... Qc7 {[%clk
0:00:25.4]} 21. Rac1 {[%clk 0:00:19.4]} 21... Bd7 {[%clk 0:00:25.6]} 22. Bb1
{[%clk 0:00:18]} 22... Rab8 {[%clk 0:00:25.1]} 23. Qd3 {[%clk 0:00:16.9]} 23...
b5 {[%clk 0:00:24.6]} 24. Qxh7# {[%clk 0:00:16.1]} 1-0

[Event "Betsys MČR v online bleskovém šachu 2021"]
[Site "Chess.com"]
[Date "2021.04.17"]
[Round "12"]
[White "kaprasov"]
[Black "Daffac"]
[Result "1-0"]
[WhiteElo "1884"]
[BlackElo "2071"]
[TimeControl "180+1"]
[EndTime "11:00:20 PDT"]
[Termination "Uživatel kaprasov zvítězil matem"]

1. d4 {[%clk 0:03:00.9]} 1... e6 {[%clk 0:02:59.3]} 2. Nf3 {[%clk 0:02:59.4]}
2... f5 {[%clk 0:02:59.1]} 3. Bg5 {[%clk 0:02:58.6]} 3... Nf6 {[%clk 0:02:58.4]}
4. e3 {[%clk 0:02:58.5]} 4... h6 {[%clk 0:02:57.1]} 5. Bxf6 {[%clk 0:02:57.6]}
5... Qxf6 {[%clk 0:02:58]} 6. Bd3 {[%clk 0:02:52.1]} 6... Bd6 {[%clk 0:02:52.6]}
7. c4 {[%clk 0:02:47.8]} 7... b6 {[%clk 0:02:52.6]} 8. Nc3 {[%clk 0:02:46.4]}
8... Bb7 {[%clk 0:02:51.9]} 9. e4 {[%clk 0:02:37.8]} 9... fxe4 {[%clk
0:02:48.7]} 10. Nxe4 {[%clk 0:02:37.8]} 10... Bb4+ {[%clk 0:02:43.8]} 11. Nfd2
{[%clk 0:02:21.3]} 11... Qf4 {[%clk 0:02:36.7]} 12. O-O {[%clk 0:01:59.5]} 12...
Bxd2 {[%clk 0:02:28.9]} 13. Nxd2 {[%clk 0:01:57.8]} 13... O-O {[%clk 0:02:27.7]}
14. Qe2 {[%clk 0:01:52.3]} 14... Qxd4 {[%clk 0:02:12.4]} 15. Ne4 {[%clk
0:01:37.2]} 15... Nc6 {[%clk 0:02:05.7]} 16. Rad1 {[%clk 0:01:33]} 16... Kh8
{[%clk 0:01:46.3]} 17. Nd2 {[%clk 0:01:14.1]} 17... Ne5 {[%clk 0:01:34]} 18. Nb3
{[%clk 0:01:07.4]} 18... Qf4 {[%clk 0:01:27.4]} 19. Bb1 {[%clk 0:01:01.3]} 19...
Ng4 {[%clk 0:01:21.8]} 20. g3 {[%clk 0:00:55.3]} 20... Qg5 {[%clk 0:01:12.6]}
21. h4 {[%clk 0:00:38.3]} 21... Qh5 {[%clk 0:00:59.6]} 22. Rxd7 {[%clk
0:00:34.5]} 22... Bf3 {[%clk 0:00:53.9]} 23. Qd3 {[%clk 0:00:33.8]} 23... Nf6
{[%clk 0:00:54]} 24. Rxc7 {[%clk 0:00:25.5]} 24... Qg4 {[%clk 0:00:45.1]} 25.
Re1 {[%clk 0:00:25.5]} 25... e5 {[%clk 0:00:28.8]} 26. Qg6 {[%clk 0:00:18.7]}
26... Qh3 {[%clk 0:00:22.3]} 27. Qxg7# {[%clk 0:00:17.7]} 1-0

[Event "Betsys MČR v online bleskovém šachu 2021"]
[Site "Chess.com"]
[Date "2021.04.17"]
[Round "12"]
[White "chessbeer17"]
[Black "MilosJi"]
[Result "0-1"]
[WhiteElo "2365"]
[BlackElo "2572"]
[TimeControl "180+1"]
[EndTime "11:00:22 PDT"]
[Termination "Uživatel MilosJi zvítězil po vzdání soupeře"]

1. d4 {[%clk 0:03:00.9]} 1... d5 {[%clk 0:02:59.7]} 2. c4 {[%clk 0:03:01]} 2...
e6 {[%clk 0:03:00.1]} 3. Nc3 {[%clk 0:03:01.2]} 3... Nf6 {[%clk 0:03:00.4]} 4.
Bf4 {[%clk 0:03:01.3]} 4... c6 {[%clk 0:02:56.2]} 5. c5 {[%clk 0:03:00.9]} 5...
b6 {[%clk 0:02:53.6]} 6. b4 {[%clk 0:03:00.6]} 6... a5 {[%clk 0:02:53.5]} 7. a3
{[%clk 0:03:00.9]} 7... Ba6 {[%clk 0:02:52.2]} 8. Nf3 {[%clk 0:02:57.8]} 8...
Be7 {[%clk 0:02:51.6]} 9. e3 {[%clk 0:02:43.4]} 9... Bxf1 {[%clk 0:02:51.1]} 10.
Kxf1 {[%clk 0:02:44.3]} 10... O-O {[%clk 0:02:50.2]} 11. h3 {[%clk 0:02:42.5]}
11... Nbd7 {[%clk 0:02:43.6]} 12. g4 {[%clk 0:02:41.9]} 12... Qc8 {[%clk
0:02:36.5]} 13. Kg2 {[%clk 0:02:39.9]} 13... Qb7 {[%clk 0:02:36.5]} 14. Qc2
{[%clk 0:02:37.6]} 14... b5 {[%clk 0:02:26.7]} 15. Rhb1 {[%clk 0:02:32]} 15...
axb4 {[%clk 0:02:26.6]} 16. axb4 {[%clk 0:02:31.6]} 16... h6 {[%clk 0:02:16.1]}
17. Qb2 {[%clk 0:02:29.6]} 17... Ne4 {[%clk 0:02:08.6]} 18. Rxa8 {[%clk
0:02:21.6]} 18... Rxa8 {[%clk 0:02:07.5]} 19. Ra1 {[%clk 0:02:21.3]} 19... Nxc3
{[%clk 0:02:03.3]} 20. Qxc3 {[%clk 0:02:20.6]} 20... Ra6 {[%clk 0:01:58.4]} 21.
Nd2 {[%clk 0:02:10.7]} 21... Bf6 {[%clk 0:01:51.9]} 22. Nb3 {[%clk 0:02:05.5]}
22... Ra4 {[%clk 0:01:38.8]} 23. Na5 {[%clk 0:01:59.6]} 23... Qa6 {[%clk
0:01:34.7]} 24. Bc7 {[%clk 0:01:27.5]} 24... g5 {[%clk 0:01:21.2]} 25. f4 {[%clk
0:01:24.2]} 25... gxf4 {[%clk 0:01:15.6]} 26. exf4 {[%clk 0:01:20.9]} 26... Bg7
{[%clk 0:01:12.7]} 27. Kf3 {[%clk 0:01:18.1]} 27... Nf6 {[%clk 0:01:09]} 28. Be5
{[%clk 0:01:04.3]} 28... Ne4 {[%clk 0:01:08.5]} 29. Qb2 {[%clk 0:01:04.6]} 29...
f6 {[%clk 0:01:00.8]} 30. Bc7 {[%clk 0:01:00.2]} 30... Kf7 {[%clk 0:00:59.6]}
31. Re1 {[%clk 0:00:54.9]} 31... Bf8 {[%clk 0:00:53.6]} 32. f5 {[%clk
0:00:50.9]} 32... exf5 {[%clk 0:00:50.6]} 33. gxf5 {[%clk 0:00:50.9]} 33... Qc8
{[%clk 0:00:50.1]} 34. Bf4 {[%clk 0:00:40.4]} 34... Qxf5 {[%clk 0:00:49.7]} 35.
Qg2 {[%clk 0:00:40.1]} 35... Ra3+ {[%clk 0:00:36.7]} 36. Re3 {[%clk 0:00:39.8]}
36... Ng5+ {[%clk 0:00:33.2]} 37. Kf2 {[%clk 0:00:32.7]} 37... Qxf4+ {[%clk
0:00:32.4]} 0-1

[Event "Betsys MČR v online bleskovém šachu 2021"]
[Site "Chess.com"]
[Date "2021.04.17"]
[Round "12"]
[White "CZpeeeter"]
[Black "TomasOrnet1"]
[Result "1-0"]
[WhiteElo "1703"]
[BlackElo "1501"]
[TimeControl "180+1"]
[EndTime "11:00:25 PDT"]
[Termination "Uživatel CZpeeeter zvítězil na čas"]

1. d4 {[%clk 0:03:00.8]} 1... d5 {[%clk 0:02:58.1]} 2. Nf3 {[%clk 0:03:00.6]}
2... Bg4 {[%clk 0:02:55]} 3. e3 {[%clk 0:02:57.8]} 3... Nf6 {[%clk 0:02:52]} 4.
h3 {[%clk 0:02:57.7]} 4... Bxf3 {[%clk 0:02:48.7]} 5. Qxf3 {[%clk 0:02:57]} 5...
c6 {[%clk 0:02:48.1]} 6. c4 {[%clk 0:02:56.4]} 6... e6 {[%clk 0:02:41.2]} 7. Nc3
{[%clk 0:02:55.7]} 7... Bb4 {[%clk 0:02:32.2]} 8. Bd2 {[%clk 0:02:54.4]} 8...
Bxc3 {[%clk 0:02:30.2]} 9. Bxc3 {[%clk 0:02:54.2]} 9... Ne4 {[%clk 0:02:29.4]}
10. Bd3 {[%clk 0:02:51.4]} 10... Nxc3 {[%clk 0:02:28.8]} 11. bxc3 {[%clk
0:02:51.6]} 11... Qa5 {[%clk 0:02:26.2]} 12. Kd2 {[%clk 0:02:40.5]} 12... Nd7
{[%clk 0:02:18.4]} 13. Rhb1 {[%clk 0:02:40.1]} 13... b6 {[%clk 0:02:14.9]} 14.
a4 {[%clk 0:02:37.7]} 14... Ne5 {[%clk 0:02:10.6]} 15. dxe5 {[%clk 0:02:36.3]}
15... O-O {[%clk 0:01:40.1]} 16. Rb4 {[%clk 0:02:33.2]} 16... Rfd8 {[%clk
0:01:34.1]} 17. c5 {[%clk 0:02:26.3]} 17... Qxc5 {[%clk 0:01:27.8]} 18. Bxh7+
{[%clk 0:02:11.5]} 18... Kxh7 {[%clk 0:00:54.5]} 19. Qh5+ {[%clk 0:01:45.1]}
19... Kg8 {[%clk 0:00:49.8]} 20. Rh4 {[%clk 0:01:43.4]} 20... Kf8 {[%clk
0:00:48.9]} 21. Qh8+ {[%clk 0:01:38.7]} 21... Ke7 {[%clk 0:00:42.7]} 22. Qxg7
{[%clk 0:01:38.9]} 22... Rf8 {[%clk 0:00:40.3]} 23. Qf6+ {[%clk 0:01:38.3]}
23... Ke8 {[%clk 0:00:38.6]} 24. Rh8 {[%clk 0:01:35.4]} 24... Kd7 {[%clk
0:00:32.8]} 25. Rh7 {[%clk 0:01:30.6]} 25... Ke8 {[%clk 0:00:27.4]} 26. Rh8
{[%clk 0:01:18.2]} 26... Kd7 {[%clk 0:00:25.6]} 27. Rxf8 {[%clk 0:01:18.4]}
27... Rxf8 {[%clk 0:00:21.7]} 28. h4 {[%clk 0:01:17.6]} 28... Qe7 {[%clk
0:00:18.7]} 29. Qxe7+ {[%clk 0:01:14.6]} 29... Kxe7 {[%clk 0:00:15.8]} 30. g4
{[%clk 0:01:14.8]} 30... f5 {[%clk 0:00:14.1]} 31. g5 {[%clk 0:01:13]} 31... Rh8
{[%clk 0:00:11.2]} 32. Rh1 {[%clk 0:01:12.2]} 32... Kf7 {[%clk 0:00:10.7]} 33.
h5 {[%clk 0:01:11.6]} 33... Kg7 {[%clk 0:00:09.4]} 34. f4 {[%clk 0:01:09.9]}
34... Kf7 {[%clk 0:00:07.1]} 35. Kd3 {[%clk 0:01:08.2]} 35... a6 {[%clk
0:00:03.8]} 36. c4 {[%clk 0:01:06.5]} 36... Kg7 {[%clk 0:00:01.4]} 37. cxd5
{[%clk 0:01:02.2]} 1-0

[Event "Betsys MČR v online bleskovém šachu 2021"]
[Site "Chess.com"]
[Date "2021.04.17"]
[Round "12"]
[White "pavelchrz"]
[Black "121pepa"]
[Result "1/2-1/2"]
[WhiteElo "1657"]
[BlackElo "1443"]
[TimeControl "180+1"]
[EndTime "11:00:25 PDT"]
[Termination "Remíza dohodou"]

1. e4 {[%clk 0:03:00.9]} 1... c5 {[%clk 0:02:57.4]} 2. Nf3 {[%clk 0:03:00]} 2...
Nc6 {[%clk 0:02:56.1]} 3. d4 {[%clk 0:02:59.9]} 3... cxd4 {[%clk 0:02:54.9]} 4.
c3 {[%clk 0:02:58.6]} 4... dxc3 {[%clk 0:02:48.6]} 5. Nxc3 {[%clk 0:02:58.2]}
5... e6 {[%clk 0:02:47.3]} 6. Bc4 {[%clk 0:02:57.9]} 6... Qc7 {[%clk 0:02:37.9]}
7. Qe2 {[%clk 0:02:57.9]} 7... Bb4 {[%clk 0:02:34]} 8. O-O {[%clk 0:02:56.7]}
8... Nge7 {[%clk 0:02:29.4]} 9. Bg5 {[%clk 0:02:44.6]} 9... h6 {[%clk
0:02:24.6]} 10. Be3 {[%clk 0:02:43.4]} 10... O-O {[%clk 0:02:22.8]} 11. Nd4
{[%clk 0:02:39.3]} 11... a6 {[%clk 0:02:16.2]} 12. Bb3 {[%clk 0:02:29.8]} 12...
Ng6 {[%clk 0:02:10.5]} 13. Qh5 {[%clk 0:02:28]} 13... b5 {[%clk 0:02:00.6]} 14.
Nf5 {[%clk 0:02:08.2]} 14... Kh7 {[%clk 0:01:06]} 15. Nxh6 {[%clk 0:02:03.7]}
15... gxh6 {[%clk 0:01:02.5]} 16. Bxh6 {[%clk 0:02:01.1]} 16... Rh8 {[%clk
0:00:59.4]} 17. Bf4+ {[%clk 0:01:53.9]} 17... Kg8 {[%clk 0:00:55.6]} 18. Qxh8+
{[%clk 0:01:51.5]} 18... Kxh8 {[%clk 0:00:50.2]} 19. Bxc7 {[%clk 0:01:52]} 19...
d6 {[%clk 0:00:48.6]} 20. a3 {[%clk 0:01:47.1]} 20... Bc5 {[%clk 0:00:46.8]} 21.
Ne2 {[%clk 0:01:33.2]} 21... Kg7 {[%clk 0:00:38.5]} 22. Bc2 {[%clk 0:01:29.5]}
22... Ra7 {[%clk 0:00:36.9]} 23. b4 {[%clk 0:01:29.5]} 23... Bxf2+ {[%clk
0:00:24.1]} 24. Rxf2 {[%clk 0:01:28.1]} 24... Rxc7 {[%clk 0:00:24.7]} 25. Raf1
{[%clk 0:01:28]} 25... Bb7 {[%clk 0:00:22.6]} 26. Kh1 {[%clk 0:01:25]} 26...
Nce5 {[%clk 0:00:23.1]} 27. Kg1 {[%clk 0:01:24.3]} 27... Rxc2 {[%clk 0:00:20.7]}
28. h3 {[%clk 0:01:23.7]} 28... Bxe4 {[%clk 0:00:17.3]} 29. Rd1 {[%clk
0:01:09.9]} 29... Bd3 {[%clk 0:00:15.3]} 30. Kf1 {[%clk 0:01:01.5]} 30... Bxe2+
{[%clk 0:00:14.1]} 31. Rxe2 {[%clk 0:01:01.5]} 31... Rxe2 {[%clk 0:00:13.1]} 32.
Kxe2 {[%clk 0:01:01.6]} 32... Nf4+ {[%clk 0:00:13]} 33. Ke3 {[%clk 0:00:58]}
33... Nd5+ {[%clk 0:00:12.5]} 34. Kf2 {[%clk 0:00:54.3]} 34... Kf6 {[%clk
0:00:11.4]} 35. Rc1 {[%clk 0:00:48.8]} 35... Nd3+ {[%clk 0:00:09.8]} 1/2-1/2

[Event "Betsys MČR v online bleskovém šachu 2021"]
[Site "Chess.com"]
[Date "2021.04.17"]
[Round "12"]
[White "tkokosek007"]
[Black "jonvon640"]
[Result "0-1"]
[WhiteElo "1365"]
[BlackElo "1668"]
[TimeControl "180+1"]
[EndTime "11:00:25 PDT"]
[Termination "Uživatel jonvon640 zvítězil po vzdání soupeře"]

1. b3 {[%clk 0:02:58.5]} 1... e5 {[%clk 0:02:55.8]} 2. Bb2 {[%clk 0:02:58.3]}
2... Nc6 {[%clk 0:02:54.9]} 3. e3 {[%clk 0:02:54.2]} 3... d6 {[%clk 0:02:50.3]}
4. Bb5 {[%clk 0:02:52.6]} 4... Bd7 {[%clk 0:02:48]} 5. d3 {[%clk 0:02:50.7]}
5... a6 {[%clk 0:02:45.3]} 6. Bxc6 {[%clk 0:02:50.7]} 6... Bxc6 {[%clk
0:02:44.7]} 7. e4 {[%clk 0:02:50.6]} 7... g6 {[%clk 0:02:44.1]} 8. Ne2 {[%clk
0:02:49.7]} 8... Bg7 {[%clk 0:02:44.1]} 9. O-O {[%clk 0:02:49.6]} 9... Ne7
{[%clk 0:02:44.2]} 10. Nd2 {[%clk 0:02:49.4]} 10... O-O {[%clk 0:02:44.1]} 11.
f4 {[%clk 0:02:48.8]} 11... f5 {[%clk 0:02:35.3]} 12. fxe5 {[%clk 0:02:38.3]}
12... dxe5 {[%clk 0:02:36.2]} 13. Ng3 {[%clk 0:02:24.6]} 13... f4 {[%clk
0:02:34.8]} 14. Ne2 {[%clk 0:02:22.7]} 14... g5 {[%clk 0:02:30.7]} 15. Nf3
{[%clk 0:02:21]} 15... Ng6 {[%clk 0:02:27.5]} 16. Nc3 {[%clk 0:02:08.5]} 16...
h5 {[%clk 0:02:19.8]} 17. a4 {[%clk 0:01:52.8]} 17... g4 {[%clk 0:02:17.3]} 18.
Nd2 {[%clk 0:01:48.6]} 18... Qg5 {[%clk 0:02:08.6]} 19. Bc1 {[%clk 0:01:42.9]}
19... Qd8 {[%clk 0:01:55.3]} 20. Qe1 {[%clk 0:01:35.5]} 20... Qd4+ {[%clk
0:01:53.6]} 21. Qf2 {[%clk 0:01:10.1]} 21... Qxc3 {[%clk 0:01:49.5]} 22. Ba3
{[%clk 0:01:05.3]} 22... Rfd8 {[%clk 0:01:35.8]} 23. Nc4 {[%clk 0:01:01]} 23...
Qd4 {[%clk 0:01:30.2]} 24. Na5 {[%clk 0:00:40.8]} 24... Qb6 {[%clk 0:01:13.1]}
25. Nxc6 {[%clk 0:00:33.2]} 25... Qxc6 {[%clk 0:01:08.8]} 26. Rac1 {[%clk
0:00:30.5]} 26... Bf8 {[%clk 0:01:00.3]} 27. Bb2 {[%clk 0:00:29.1]} 27... Bc5
{[%clk 0:00:55.3]} 28. d4 {[%clk 0:00:19.1]} 28... exd4 {[%clk 0:00:53.4]} 29.
Qd2 {[%clk 0:00:17.2]} 29... d3+ {[%clk 0:00:51.8]} 30. Kh1 {[%clk 0:00:17.4]}
30... Be3 {[%clk 0:00:50.2]} 31. Qe1 {[%clk 0:00:16.6]} 31... d2 {[%clk
0:00:48.8]} 32. Qd1 {[%clk 0:00:13.2]} 32... dxc1=Q {[%clk 0:00:48.1]} 33. Bxc1
{[%clk 0:00:11.2]} 33... Rxd1 {[%clk 0:00:47.8]} 0-1

[Event "Betsys MČR v online bleskovém šachu 2021"]
[Site "Chess.com"]
[Date "2021.04.17"]
[Round "12"]
[White "sodikus"]
[Black "hoacin"]
[Result "0-1"]
[WhiteElo "2268"]
[BlackElo "2547"]
[TimeControl "180+1"]
[EndTime "11:00:26 PDT"]
[Termination "Uživatel hoacin zvítězil matem"]

1. d4 {[%clk 0:03:00.9]} 1... Nf6 {[%clk 0:02:58.2]} 2. Bg5 {[%clk 0:02:57.4]}
2... c5 {[%clk 0:02:56.7]} 3. d5 {[%clk 0:02:55.2]} 3... Qb6 {[%clk 0:02:49.7]}
4. Bxf6 {[%clk 0:02:27.4]} 4... Qxf6 {[%clk 0:02:47.2]} 5. Nc3 {[%clk
0:02:25.9]} 5... d6 {[%clk 0:02:43.3]} 6. Nf3 {[%clk 0:02:24.2]} 6... g5 {[%clk
0:02:41]} 7. e4 {[%clk 0:02:16.8]} 7... g4 {[%clk 0:02:35.9]} 8. Nd2 {[%clk
0:02:17]} 8... Bg7 {[%clk 0:02:33.9]} 9. Be2 {[%clk 0:02:14.4]} 9... h5 {[%clk
0:02:29.6]} 10. a4 {[%clk 0:02:13.2]} 10... Nd7 {[%clk 0:02:23.3]} 11. Nc4
{[%clk 0:02:09]} 11... Ne5 {[%clk 0:02:18.1]} 12. Nxe5 {[%clk 0:02:02.1]} 12...
Qxe5 {[%clk 0:02:17.7]} 13. Bb5+ {[%clk 0:01:53.6]} 13... Kf8 {[%clk 0:02:14.2]}
14. Be2 {[%clk 0:01:41.6]} 14... Qf4 {[%clk 0:02:00.9]} 15. Qd2 {[%clk
0:01:35.7]} 15... Qxd2+ {[%clk 0:01:43.6]} 16. Kxd2 {[%clk 0:01:35.7]} 16... Bd4
{[%clk 0:01:42.2]} 17. Raf1 {[%clk 0:01:23.3]} 17... f5 {[%clk 0:01:39.3]} 18.
f3 {[%clk 0:01:20.3]} 18... fxe4 {[%clk 0:01:22.8]} 19. fxg4+ {[%clk 0:01:06.6]}
19... Kg7 {[%clk 0:01:22.4]} 20. gxh5 {[%clk 0:01:01.6]} 20... e6 {[%clk
0:01:21]} 21. Nxe4 {[%clk 0:00:53.4]} 21... exd5 {[%clk 0:01:18.6]} 22. Nxd6
{[%clk 0:00:53.5]} 22... Bxb2 {[%clk 0:01:16.7]} 23. Rf7+ {[%clk 0:00:45.6]}
23... Kh6 {[%clk 0:01:16.2]} 24. c3 {[%clk 0:00:23.5]} 24... d4 {[%clk
0:01:13.6]} 25. Rf6+ {[%clk 0:00:21.5]} 25... Kg7 {[%clk 0:01:11.8]} 26. Rg6+
{[%clk 0:00:20.2]} 26... Kf8 {[%clk 0:01:06.8]} 27. Rf1+ {[%clk 0:00:18]} 27...
Ke7 {[%clk 0:01:07]} 28. Rf7+ {[%clk 0:00:16.1]} 28... Kd8 {[%clk 0:01:06.7]}
29. cxd4 {[%clk 0:00:06.8]} 29... Bxd4 {[%clk 0:01:05.9]} 30. Bb5 {[%clk
0:00:06]} 30... a6 {[%clk 0:01:05]} 31. Bc4 {[%clk 0:00:05.3]} 31... b5 {[%clk
0:01:04.5]} 32. axb5 {[%clk 0:00:03.5]} 32... axb5 {[%clk 0:01:04.4]} 33. Bxb5
{[%clk 0:00:04]} 33... Ra2+ {[%clk 0:01:03.9]} 34. Kd3 {[%clk 0:00:04.4]} 34...
Ra3+ {[%clk 0:01:03.6]} 35. Ke4 {[%clk 0:00:02.8]} 35... Re3+ {[%clk 0:01:00]}
36. Kd5 {[%clk 0:00:02.5]} 36... Rxh5+ {[%clk 0:00:58.5]} 37. Kc4 {[%clk
0:00:01.6]} 37... Rc3# {[%clk 0:00:56.6]} 0-1

[Event "Betsys MČR v online bleskovém šachu 2021"]
[Site "Chess.com"]
[Date "2021.04.17"]
[Round "12"]
[White "Krejcak"]
[Black "lockerbieQ"]
[Result "0-1"]
[WhiteElo "1992"]
[BlackElo "1764"]
[TimeControl "180+1"]
[EndTime "11:00:26 PDT"]
[Termination "Uživatel lockerbieQ zvítězil po vzdání soupeře"]

1. e4 {[%clk 0:03:00.9]} 1... c5 {[%clk 0:02:57.4]} 2. Nc3 {[%clk 0:03:00.3]}
2... e6 {[%clk 0:02:55.9]} 3. f4 {[%clk 0:02:59.8]} 3... Nc6 {[%clk 0:02:55]} 4.
Nf3 {[%clk 0:02:59.2]} 4... Nge7 {[%clk 0:02:52.2]} 5. g3 {[%clk 0:02:58.4]}
5... g6 {[%clk 0:02:51.3]} 6. Bg2 {[%clk 0:02:58.4]} 6... Bg7 {[%clk 0:02:51.6]}
7. O-O {[%clk 0:02:58.1]} 7... d6 {[%clk 0:02:51.2]} 8. d3 {[%clk 0:02:56.2]}
8... O-O {[%clk 0:02:51.3]} 9. Ne2 {[%clk 0:02:55.9]} 9... Nd4 {[%clk
0:02:45.9]} 10. c3 {[%clk 0:02:53.9]} 10... Nxf3+ {[%clk 0:02:43.4]} 11. Rxf3
{[%clk 0:02:48.4]} 11... b6 {[%clk 0:02:34.6]} 12. Be3 {[%clk 0:02:47.4]} 12...
Bb7 {[%clk 0:02:34.5]} 13. Rf2 {[%clk 0:02:47.2]} 13... d5 {[%clk 0:02:27.8]}
14. e5 {[%clk 0:02:45.7]} 14... Nf5 {[%clk 0:02:21.7]} 15. Qd2 {[%clk
0:02:42.3]} 15... Nxe3 {[%clk 0:02:19.8]} 16. Qxe3 {[%clk 0:02:41.9]} 16... Qc7
{[%clk 0:02:18.4]} 17. d4 {[%clk 0:02:41.5]} 17... cxd4 {[%clk 0:02:16.7]} 18.
Nxd4 {[%clk 0:02:34.8]} 18... Ba6 {[%clk 0:02:09.3]} 19. g4 {[%clk 0:02:32.6]}
19... Rac8 {[%clk 0:02:04.8]} 20. Re1 {[%clk 0:02:31.1]} 20... Qc5 {[%clk
0:01:59.1]} 21. f5 {[%clk 0:02:27.8]} 21... exf5 {[%clk 0:01:56.9]} 22. gxf5
{[%clk 0:02:27.2]} 22... gxf5 {[%clk 0:01:37.7]} 23. Rxf5 {[%clk 0:02:26.2]}
23... Kh8 {[%clk 0:01:35.9]} 24. Rh5 {[%clk 0:02:17.4]} 24... f6 {[%clk
0:00:26]} 25. Qh3 {[%clk 0:02:00.7]} 25... h6 {[%clk 0:00:22.2]} 26. Kh1 {[%clk
0:01:52.4]} 26... fxe5 {[%clk 0:00:17.9]} 27. Ne6 {[%clk 0:01:41.6]} 27... Qf2
{[%clk 0:00:17.6]} 28. Rxh6+ {[%clk 0:01:39.4]} 28... Kg8 {[%clk 0:00:17.3]} 29.
Rf1 {[%clk 0:01:34.4]} 29... Bxf1 {[%clk 0:00:15.5]} 30. Nxg7 {[%clk 0:01:26.8]}
30... Bxg2+ {[%clk 0:00:15.2]} 31. Qxg2 {[%clk 0:01:26.5]} 31... Qxg2+ {[%clk
0:00:15.5]} 32. Kxg2 {[%clk 0:01:26.6]} 32... Kxg7 {[%clk 0:00:16.4]} 33. Rd6
{[%clk 0:01:24.8]} 33... Rcd8 {[%clk 0:00:16]} 34. Re6 {[%clk 0:01:24.9]} 34...
Rfe8 {[%clk 0:00:15.8]} 35. Rc6 {[%clk 0:01:24.6]} 35... Kf7 {[%clk 0:00:15.3]}
36. h4 {[%clk 0:01:23]} 36... d4 {[%clk 0:00:15.5]} 37. cxd4 {[%clk 0:01:21.7]}
37... exd4 {[%clk 0:00:15.6]} 38. h5 {[%clk 0:01:21.6]} 38... Re6 {[%clk
0:00:15.7]} 39. Rc7+ {[%clk 0:01:20.4]} 39... Re7 {[%clk 0:00:15.2]} 40. Rc2
{[%clk 0:01:19.3]} 40... d3 {[%clk 0:00:15]} 41. Rd2 {[%clk 0:01:18.2]} 41...
Re2+ {[%clk 0:00:15.1]} 42. Rxe2 {[%clk 0:01:18.2]} 42... dxe2 {[%clk
0:00:14.8]} 43. Kf2 {[%clk 0:01:18.7]} 43... Re8 {[%clk 0:00:15.1]} 44. Ke1
{[%clk 0:01:18.1]} 44... Kf6 {[%clk 0:00:15.4]} 45. b3 {[%clk 0:01:18.3]} 45...
Kg5 {[%clk 0:00:15.8]} 46. a4 {[%clk 0:01:19]} 46... Kxh5 {[%clk 0:00:16.1]} 47.
b4 {[%clk 0:01:19.6]} 47... Kg4 {[%clk 0:00:16]} 48. a5 {[%clk 0:01:20.1]} 48...
Kf3 {[%clk 0:00:16.2]} 49. axb6 {[%clk 0:01:19.3]} 49... axb6 {[%clk 0:00:16.1]}
50. b5 {[%clk 0:01:19.2]} 50... Re7 {[%clk 0:00:16.4]} 0-1